[Event "TUR-chT Superleague 2018"]
[Site "Ankara"]
[Date "2018.07.28"]
[Round "4"]
[White "Soylu, Suat"]
[Black "Solak, Dragan"]
[Result "0-1"]
[ECO "C41"]
[WhiteElo "2339"]
[BlackElo "2603"]
[Annotator "ChessBase"]
[PlyCount "78"]
[EventDate "2018.07.25"]
[EventType "team-tourn"]
[EventCountry "TUR"]
[SourceTitle "playchess.com"]
[Source "ChessBase"]
[SourceQuality "1"]
[TimeControl "40/5400+30:1800+30"]

1. e4 {[%emt 0:00:30]} d6 {[%emt 0:01:00]} 2. d4 {[%emt 0:00:30]} Nf6 {[%emt 0:00:30]} 3. Nc3 {[%emt 0:00:30]} e5 {[%emt 0:00:00]} 4. Nf3 {[%emt 0:00:30]} Nbd7 {[%emt 0:00:00]} 5. Bc4 {[%emt 0:00:30]} exd4 {[%emt 0:00:30]} 6. Qxd4 {[%emt 0:09:30]} Be7 {[%emt 0:02:30]} 7. O-O {[%emt 0:08:30]} O-O {[%emt 0:00:30]} 8. a3 {[%emt 0:14:30]} Nb6 {[%emt 0:07:30]} 9. Ba2 {[%emt 0:02:30]} Bg4 {[%emt 0:00:30]} 10. Qd3 {[%emt 0:02:30]} Nfd7 {[%emt 0:01:30]} 11. Nd4 {[%emt 0:01:30]} Ne5 {[%emt 0:04:30]} 12. Qe3 {[%emt 0:02:30]} Nbc4 {[%emt 0:25:30]} 13. Qf4 {[%emt 0:03:30]} Qd7 {[%emt 0:10:30]} 14. Qg3 {[%emt 0:08:30]} c5 {[%emt 0:18:30]} 15. Nf5 {[%emt 0:06:30]} Bxf5 {[%emt 0:02:30]} 16. exf5 {[%emt 0:00:00]} Nb6 {[%emt 0:05:37]} 17. Bh6 {[%emt 0:02:00]} Bf6 {[%emt 0:00:38]} 18. f4 {[%emt 0:04:30]} Ng6 {[%emt 0:03:44]} 19. fxg6 {[%emt 0:00:30]} gxh6 {[%emt 0:00:09]} 20. gxf7+ {[%emt 0:00:30]} Kh8 {[%emt 0:00:07]} 21. Rad1 {[%emt 0:03:30]} c4 {[%emt 0:00:29]} 22. Ne4 {[%emt 0:01:30]} Qxf7 {[%emt 0:00:26]} 23. Nxd6 {[%emt 0:01:30]} Qh5 {[%emt 0:02:01]} 24. f5 {[%emt 0:12:33]} Rad8 {[%emt 0:00:47]} 25. c3 {[%emt 0:04:17]} Rd7 {[%emt 0:02:05]} 26. Qe3 {[%emt 0:03:18]} Nc8 {[%emt 0:04:47]} 27. Qe6 {[%emt 0:00:59]} Re7 {[%emt 0:00:44]} 28. Qxc4 {[%emt 0:01:49]} Nxd6 {[%emt 0:02:41]} 29. Qd3 {[%emt 0:03:34]} Nf7 {[%emt 0:01:14]} 30. Qf3 {[%emt 0:00:46]} Qxf3 {[%emt 0:01:53]} 31. Rxf3 {[%emt 0:00:01]} h5 {[%emt 0:00:12]} 32. Rfd3 {[%emt 0:00:31]} Rfe8 {[%emt 0:01:10]} 33. Rd7 {[%emt 0:00:38]} Kg7 {[%emt 0:00:19]} 34. Kf1 {[%emt 0:00:38]} Rxd7 {[%emt 0:01:16]} 35. Rxd7 {[%emt 0:00:01]} Re7 {[%emt 0:00:06]} 36. Rd1 {[%emt 0:00:26]} h4 {[%emt 0:00:36]} 37. a4 {[%emt 0:00:41]} Be5 {[%emt 0:00:23]} 38. Re1 {[%emt 0:01:01]} Kf6 {[%emt 0:00:53]} 39. h3 {[%emt 0:00:23]} Nd6 {[%emt 0:00:32]} 0-1

[Event "TUR-chT Superleague 2018"]
[Site "Ankara"]
[Date "2018.07.28"]
[Round "4"]
[White "Buksa, Nataliya"]
[Black "Aydin, Gulenay"]
[Result "1-0"]
[ECO "B75"]
[WhiteElo "2337"]
[BlackElo "1732"]
[Annotator "NA"]
[PlyCount "103"]
[EventDate "2018.07.25"]
[EventType "team-tourn"]
[EventCountry "TUR"]
[SourceTitle "playchess.com"]
[Source "ChessBase"]
[SourceQuality "1"]
[TimeControl "40/5400+30:1800+30"]

1. e4 {[%emt 0:00:30]} c5 {[%emt 0:01:00]} 2. Nf3 {[%emt 0:00:30]} d6 {[%emt 0:00:30]} 3. d4 {[%emt 0:00:30]} cxd4 {[%emt 0:00:30]} 4. Nxd4 {[%emt 0:00:00]} Nf6 {[%emt 0:00:00]} 5. Nc3 {[%emt 0:00:00]} g6 {[%emt 0:00:00]} 6. Be3 {[%emt 0:00:00]} Bg7 {[%emt 0:00:30]} 7. f3 {[%emt 0:00:00]} a6 {[%emt 0:00:30]} 8. Qd2 {[%emt 0:02:30]} h5 {[%emt 0:01:30]} 9. Be2 {[%emt 0:00:30]} Nbd7 {[%emt 0:07:30]} 10. O-O {[%emt 0:00:30]} O-O {[%emt 0:02:30]} 11. Nd5 {[%emt 0:06:30]} e5 {[%emt 0:26:30]} 12. Nb3 {[%emt 0:01:30]} Nxd5 {[%emt 0:00:30]} 13. Qxd5 {[%emt 0:01:30]} Nf6 {[%emt 0:02:30]} 14. Qd2 {[%emt 0:02:30]} Qc7 {[%emt 0:03:30]} 15. c4 {[%emt 0:04:30]} Be6 {[%emt 0:09:30]} 16. Rfd1 {[%emt 0:10:30]} Rfd8 {[%emt 0:03:30]} 17. Rac1 {[%emt 0:05:30]} b6 {[%emt 0:05:30]} 18. Na1 {[%emt 0:03:30]} Bf8 {[%emt 0:04:30]} 19. Nc2 {[%emt 0:01:30]} a5 {[%emt 0:13:12]} 20. Na3 {[%emt 0:00:30]} Rac8 {[%emt 0:01:41]} 21. Nb5 {[%emt 0:00:30]} Qb8 {[%emt 0:00:59]} 22. Bg5 {[%emt 0:09:30]} Be7 {[%emt 0:00:30]} 23. b3 {[%emt 0:00:30]} Rd7 {[%emt 0:04:42]} 24. Nc3 {[%emt 0:15:30]} Rdc7 {[%emt 0:01:51]} 25. Qe1 {[%emt 0:11:30]} Ne8 {[%emt 0:01:55]} 26. Be3 {[%emt 0:00:30]} Nf6 {[%emt 0:03:18]} 27. Nb5 {[%emt 0:01:30]} Rc6 {[%emt 0:01:17]} 28. Bg5 {[%emt 0:00:30]} Re8 {[%emt 0:00:31]} 29. Rd3 {[%emt 0:00:30]} Nd7 {[%emt 0:03:57]} 30. Bxe7 {[%emt 0:01:30]} Rxe7 {[%emt 0:00:30]} 31. Rcd1 {[%emt 0:00:30]} Nc5 {[%emt 0:00:30]} 32. Rxd6 {[%emt 0:00:30]} Rxd6 {[%emt 0:00:30]} 33. Rxd6 {[%emt 0:00:00]} Rd7 {[%emt 0:00:06]} 34. Qd1 {[%emt 0:05:02]} Rxd6 {[%emt 0:00:40]} 35. Nxd6 {[%emt 0:01:13]} Qd8 {[%emt 0:00:35]} 36. g3 {[%emt 0:00:06]} Qd7 {[%emt 0:00:59]} 37. Nb5 {[%emt 0:00:08]} Qxd1+ {[%emt 0:00:24]} 38. Bxd1 {[%emt 0:00:02]} Bd7 {[%emt 0:00:19]} 39. Nc3 {[%emt 0:00:31]} Bc6 {[%emt 0:00:23]} 40. Kf2 {[%emt 0:00:00]} Kf8 {[%emt 0:01:11]} 41. Ke3 {[%emt 0:04:28]} Ke7 {[%emt 0:08:30]} 42. a3 {[%emt 0:00:30]} Kd6 {[%emt 0:07:47]} 43. f4 {[%emt 0:14:30]} f6 {[%emt 0:01:10]} 44. b4 {[%emt 0:12:01]} axb4 {[%emt 0:04:07]} 45. axb4 {[%emt 0:00:03]} Ne6 {[%emt 0:01:59]} 46. Nd5 {[%emt 0:03:16]} Bxd5 {[%emt 0:00:30]} 47. exd5 {[%emt 0:00:00]} Nd4 {[%emt 0:07:47]} 48. Ke4 {[%emt 0:00:00]} Nf5 {[%emt 0:00:50]} 49. fxe5+ {[%emt 0:00:55]} fxe5 {[%emt 0:00:30]} 50. Bxh5 {[%emt 0:00:00]} Ne7 {[%emt 0:00:02]} 51. Bg4 {[%emt 0:00:52]} Ng8 {[%emt 0:00:34]} 52. c5+ {[%emt 0:00:08]} 1-0

[Event "TUR-chT Superleague 2018"]
[Site "Ankara"]
[Date "2018.07.28"]
[Round "4"]
[White "Balajayeva, Khanim"]
[Black "Can, Isil"]
[Result "1-0"]
[ECO "C50"]
[WhiteElo "2332"]
[BlackElo "1862"]
[Annotator "NA"]
[PlyCount "115"]
[EventDate "2018.07.25"]
[EventType "team-tourn"]
[EventCountry "TUR"]
[SourceTitle "playchess.com"]
[Source "ChessBase"]
[SourceQuality "1"]
[TimeControl "40/5400+30:1800+30"]

1. e4 {[%emt 0:00:30]} e5 {[%emt 0:01:00]} 2. Nf3 {[%emt 0:00:30]} Nc6 {[%emt 0:00:30]} 3. Bc4 {[%emt 0:00:00]} Bc5 {[%emt 0:00:30]} 4. Nc3 {[%emt 0:00:00]} Nf6 {[%emt 0:00:00]} 5. d3 {[%emt 0:00:00]} d6 {[%emt 0:01:00]} 6. Bg5 {[%emt 0:00:00]} h6 {[%emt 0:01:30]} 7. Bxf6 {[%emt 0:00:30]} Qxf6 {[%emt 0:00:30]} 8. Nd5 {[%emt 0:00:30]} Qd8 {[%emt 0:00:00]} 9. c3 {[%emt 0:00:00]} O-O {[%emt 0:04:00]} 10. b4 {[%emt 0:00:00]} Bb6 {[%emt 0:00:30]} 11. a4 {[%emt 0:00:30]} a5 {[%emt 0:04:30]} 12. Nxb6 {[%emt 0:00:30]} cxb6 {[%emt 0:00:30]} 13. bxa5 {[%emt 0:00:30]} bxa5 {[%emt 0:03:30]} 14. O-O {[%emt 0:02:30]} Ne7 {[%emt 0:05:30]} 15. Nd2 {[%emt 0:22:30]} Ng6 {[%emt 0:06:30]} 16. g3 {[%emt 0:04:30]} Bh3 {[%emt 0:12:30]} 17. Re1 {[%emt 0:00:00]} Qg5 {[%emt 0:00:00]} 18. Rb1 {[%emt 0:02:00]} Rab8 {[%emt 0:00:00]} 19. Rb6 {[%emt 0:09:30]} Nh4 {[%emt 0:12:30]} 20. Nf3 {[%emt 0:03:30]} Qd8 {[%emt 0:06:30]} 21. Rb2 {[%emt 0:03:30]} Ng6 {[%emt 0:01:30]} 22. Nd2 {[%emt 0:06:30]} b6 {[%emt 0:02:30]} 23. Qh5 {[%emt 0:01:30]} Qd7 {[%emt 0:11:30]} 24. Qxg6 {[%emt 0:01:30]} Kh8 {[%emt 0:00:30]} 25. Qh5 {[%emt 0:00:30]} Bg4 {[%emt 0:00:30]} 26. Qh4 {[%emt 0:00:00]} Kh7 {[%emt 0:04:30]} 27. f3 {[%emt 0:00:00]} f5 {[%emt 0:02:35]} 28. exf5 {[%emt 0:07:30]} Bxf5 {[%emt 0:00:28]} 29. g4 {[%emt 0:01:30]} g5 {[%emt 0:00:40]} 30. Qg3 {[%emt 0:01:30]} Bg6 {[%emt 0:00:19]} 31. d4 {[%emt 0:05:30]} Qc7 {[%emt 0:04:46]} 32. dxe5 {[%emt 0:12:30]} d5 {[%emt 0:00:27]} 33. Bb5 {[%emt 0:00:58]} Qxc3 {[%emt 0:03:53]} 34. Ra2 {[%emt 0:00:03]} Bd3 {[%emt 0:01:32]} 35. Bxd3+ {[%emt 0:02:07]} Qxd3 {[%emt 0:00:01]} 36. e6 {[%emt 0:01:22]} Rf4 {[%emt 0:00:31]} 37. Qf2 {[%emt 0:01:13]} Re8 {[%emt 0:02:23]} 38. Qxb6 {[%emt 0:01:21]} d4 {[%emt 0:00:19]} 39. Qb1 {[%emt 0:01:47]} Qxb1 {[%emt 0:00:30]} 40. Nxb1 {[%emt 0:00:00]} Rxf3 {[%emt 0:00:36]} 41. Rae2 {[%emt 0:01:39]} Rb3 {[%emt 0:01:30]} 42. e7 {[%emt 0:01:30]} d3 {[%emt 0:00:00]} 43. Re3 {[%emt 0:01:30]} Rb4 {[%emt 0:00:00]} 44. Re4 {[%emt 0:00:00]} Rb2 {[%emt 0:00:30]} 45. Rd4 {[%emt 0:00:00]} Rb7 {[%emt 0:01:30]} 46. Rxd3 {[%emt 0:00:30]} Rexe7 {[%emt 0:00:00]} 47. Rxe7+ {[%emt 0:00:30]} Rxe7 {[%emt 0:00:00]} 48. Nd2 {[%emt 0:00:30]} Re1+ {[%emt 0:00:30]} 49. Kf2 {[%emt 0:00:30]} Ra1 {[%emt 0:00:00]} 50. Rd4 {[%emt 0:00:00]} h5 {[%emt 0:00:00]} 51. gxh5 {[%emt 0:06:00]} Kh6 {[%emt 0:00:30]} 52. Nf3 {[%emt 0:00:30]} Kxh5 {[%emt 0:00:30]} 53. Kg3 {[%emt 0:00:30]} Ra3 {[%emt 0:00:30]} 54. Rg4 {[%emt 0:01:30]} Kh6 {[%emt 0:00:30]} 55. h3 {[%emt 0:00:00]} Rb3 {[%emt 0:00:30]} 56. Rxg5 {[%emt 0:00:00]} Rxf3+ {[%emt 0:02:30]} 57. Kxf3 {[%emt 0:00:30]} Kxg5 {[%emt 0:00:30]} 58. Ke4 {[%emt 0:00:00]} 1-0

[Event "TUR-chT Superleague 2018"]
[Site "Ankara"]
[Date "2018.07.28"]
[Round "4"]
[White "Ozturk, Kubra"]
[Black "Mamedjarova, Zeinab"]
[Result "0-1"]
[ECO "E06"]
[WhiteElo "2330"]
[BlackElo "2345"]
[Annotator "NA"]
[PlyCount "118"]
[EventDate "2018.07.25"]
[EventType "team-tourn"]
[EventCountry "TUR"]
[SourceTitle "playchess.com"]
[Source "ChessBase"]
[SourceQuality "1"]
[TimeControl "40/5400+30:1800+30"]

1. d4 {[%emt 0:00:30]} d5 {[%emt 0:01:00]} 2. Nf3 {[%emt 0:00:30]} e6 {[%emt 0:00:30]} 3. c4 {[%emt 0:00:00]} Nf6 {[%emt 0:00:30]} 4. Nc3 {[%emt 0:01:00]} Be7 {[%emt 0:00:00]} 5. g3 {[%emt 0:04:30]} O-O {[%emt 0:01:00]} 6. Bg2 {[%emt 0:00:30]} Nbd7 {[%emt 0:03:30]} 7. Qb3 {[%emt 0:07:30]} Nb6 {[%emt 0:02:30]} 8. cxd5 {[%emt 0:04:30]} exd5 {[%emt 0:00:30]} 9. O-O {[%emt 0:01:30]} Bf5 {[%emt 0:01:30]} 10. Ne5 {[%emt 0:05:30]} a5 {[%emt 0:00:00]} 11. a3 {[%emt 0:02:30]} c6 {[%emt 0:02:00]} 12. h3 {[%emt 0:10:30]} a4 {[%emt 0:06:30]} 13. Qd1 {[%emt 0:00:30]} Nfd7 {[%emt 0:02:30]} 14. Nd3 {[%emt 0:05:30]} h6 {[%emt 0:05:30]} 15. f4 {[%emt 0:17:30]} Bxd3 {[%emt 0:15:30]} 16. exd3 {[%emt 0:01:30]} f5 {[%emt 0:00:30]} 17. Be3 {[%emt 0:01:30]} Bf6 {[%emt 0:07:30]} 18. Rc1 {[%emt 0:03:30]} Qe7 {[%emt 0:02:30]} 19. Bf2 {[%emt 0:00:30]} g6 {[%emt 0:00:30]} 20. Kh2 {[%emt 0:04:30]} Qg7 {[%emt 0:00:30]} 21. Ne2 {[%emt 0:00:30]} Nc8 {[%emt 0:01:30]} 22. Qd2 {[%emt 0:00:30]} Re8 {[%emt 0:09:30]} 23. Rce1 {[%emt 0:07:14]} Nf8 {[%emt 0:00:30]} 24. Qb4 {[%emt 0:02:04]} Qe7 {[%emt 0:01:30]} 25. Qd2 {[%emt 0:02:59]} Ne6 {[%emt 0:00:30]} 26. g4 {[%emt 0:04:50]} Nd6 {[%emt 0:00:30]} 27. Ng3 {[%emt 0:01:34]} Qc7 {[%emt 0:10:30]} 28. Re5 {[%emt 0:03:34]} fxg4 {[%emt 0:01:30]} 29. hxg4 {[%emt 0:00:29]} Nf7 {[%emt 0:03:30]} 30. Rc1 {[%emt 0:02:21]} Nxf4 {[%emt 0:08:05]} 31. Qxf4 {[%emt 0:01:00]} Nxe5 {[%emt 0:00:24]} 32. dxe5 {[%emt 0:02:32]} Bg5 {[%emt 0:01:03]} 33. Bxd5+ {[%emt 0:00:08]} Kh7 {[%emt 0:03:02]} 34. Qc4 {[%emt 0:00:22]} Bxc1 {[%emt 0:00:11]} 35. Qxc1 {[%emt 0:00:30]} Qxe5 {[%emt 0:00:00]} 36. Be4 {[%emt 0:00:00]} Rf8 {[%emt 0:08:29]} 37. Be3 {[%emt 0:00:35]} Rf7 {[%emt 0:00:59]} 38. Kg2 {[%emt 0:01:02]} Raf8 {[%emt 0:00:54]} 39. d4 {[%emt 0:01:38]} Qe6 {[%emt 0:00:37]} 40. Qh1 {[%emt 0:00:00]} Kg8 {[%emt 0:02:46]} 41. Qxh6 {[%emt 0:03:38]} Qxg4 {[%emt 0:01:30]} 42. Qxg6+ {[%emt 0:13:26]} Qxg6 {[%emt 0:00:30]} 43. Bxg6 {[%emt 0:00:00]} Rf3 {[%emt 0:01:30]} 44. Bc1 {[%emt 0:00:34]} Rf2+ {[%emt 0:01:30]} 45. Kh3 {[%emt 0:00:20]} Kg7 {[%emt 0:03:30]} 46. Be4 {[%emt 0:00:58]} Kf6 {[%emt 0:01:30]} 47. Nh5+ {[%emt 0:02:52]} Ke7 {[%emt 0:00:30]} 48. Kg3 {[%emt 0:01:09]} Rf1 {[%emt 0:00:30]} 49. Bg5+ {[%emt 0:01:11]} Kd7 {[%emt 0:00:30]} 50. Bg2 {[%emt 0:01:46]} Rg1 {[%emt 0:05:38]} 51. Nf6+ {[%emt 0:03:12]} Ke6 {[%emt 0:00:41]} 52. Ne4 {[%emt 0:00:43]} Kf5 {[%emt 0:00:36]} 53. Nf2 {[%emt 0:06:37]} Rxg2+ {[%emt 0:00:33]} 54. Kxg2 {[%emt 0:00:30]} Kxg5 {[%emt 0:00:00]} 55. Ne4+ {[%emt 0:00:00]} Kf4 {[%emt 0:01:23]} 56. Nc5 {[%emt 0:00:00]} Ke3 {[%emt 0:00:30]} 57. Nxa4 {[%emt 0:01:20]} Kxd4 {[%emt 0:00:15]} 58. b4 {[%emt 0:00:00]} b5 {[%emt 0:02:05]} 59. Nc5 {[%emt 0:00:00]} Ra8 {[%emt 0:00:56]} 0-1

[Event "TUR-chT Superleague 2018"]
[Site "Ankara"]
[Date "2018.07.28"]
[Round "4"]
[White "Sari, Yasin"]
[Black "Ozen, Bahadir"]
[Result "1/2-1/2"]
[ECO "C45"]
[WhiteElo "2330"]
[BlackElo "2317"]
[Annotator "NA"]
[PlyCount "60"]
[EventDate "2018.07.25"]
[EventType "team-tourn"]
[EventCountry "TUR"]
[SourceTitle "playchess.com"]
[Source "ChessBase"]
[SourceQuality "1"]
[TimeControl "40/5400+30:1800+30"]

1. e4 {[%emt 0:00:30]} e5 {[%emt 0:01:00]} 2. Nf3 {[%emt 0:00:30]} Nc6 {[%emt 0:00:30]} 3. d4 {[%emt 0:00:30]} exd4 {[%emt 0:00:30]} 4. Nxd4 {[%emt 0:00:30]} Nf6 {[%emt 0:00:00]} 5. Nxc6 {[%emt 0:01:30]} bxc6 {[%emt 0:01:00]} 6. e5 {[%emt 0:00:30]} Qe7 {[%emt 0:00:00]} 7. Qe2 {[%emt 0:00:30]} Nd5 {[%emt 0:00:00]} 8. c4 {[%emt 0:00:30]} Ba6 {[%emt 0:01:30]} 9. Nd2 {[%emt 0:01:30]} g6 {[%emt 0:15:30]} 10. Nf3 {[%emt 0:04:30]} Qb4+ {[%emt 0:06:30]} 11. Kd1 {[%emt 0:04:30]} Nb6 {[%emt 0:04:30]} 12. b3 {[%emt 0:06:30]} O-O-O {[%emt 0:06:30]} 13. Bg5 {[%emt 0:16:30]} Re8 {[%emt 0:07:30]} 14. Qd2 {[%emt 0:03:30]} Qxd2+ {[%emt 0:02:30]} 15. Kxd2 {[%emt 0:05:30]} Bg7 {[%emt 0:00:00]} 16. Re1 {[%emt 0:04:30]} d5 {[%emt 0:05:00]} 17. exd6 {[%emt 0:06:30]} cxd6 {[%emt 0:02:30]} 18. Bd3 {[%emt 0:02:30]} d5 {[%emt 0:01:30]} 19. cxd5 {[%emt 0:04:30]} Bxd3 {[%emt 0:00:30]} 20. Kxd3 {[%emt 0:00:30]} Nxd5 {[%emt 0:00:00]} 21. Rxe8+ {[%emt 0:01:30]} Rxe8 {[%emt 0:00:00]} 22. Re1 {[%emt 0:00:30]} Rxe1 {[%emt 0:06:30]} 23. Nxe1 {[%emt 0:00:00]} Kc7 {[%emt 0:00:30]} 24. Nc2 {[%emt 0:04:00]} c5 {[%emt 0:01:30]} 25. Kc4 {[%emt 0:02:30]} Kc6 {[%emt 0:00:30]} 26. Bd2 {[%emt 0:00:30]} Nb6+ {[%emt 0:01:30]} 27. Kd3 {[%emt 0:00:30]} Nd5 {[%emt 0:00:30]} 28. Kc4 {[%emt 0:00:30]} Nb6+ {[%emt 0:00:00]} 29. Kd3 {[%emt 0:00:00]} Nd5 {[%emt 0:00:00]} 30. Kc4 {[%emt 0:00:00]} Nb6+ {[%emt 0:00:00]} 1/2-1/2

[Event "TUR-chT Superleague 2018"]
[Site "Ankara"]
[Date "2018.07.28"]
[Round "4"]
[White "Injac, Teodora"]
[Black "Muzychuk, Mariya"]
[Result "0-1"]
[ECO "D02"]
[WhiteElo "2302"]
[BlackElo "2521"]
[Annotator "RC"]
[PlyCount "48"]
[EventDate "2018.07.25"]
[EventType "team-tourn"]
[EventCountry "TUR"]
[SourceTitle "playchess.com"]
[Source "ChessBase"]
[SourceQuality "1"]
[TimeControl "40/5400+30:1800+30"]

1. d4 {[%emt 0:00:30]} Nf6 {[%emt 0:01:00]} 2. Nf3 {[%emt 0:00:30]} g6 {[%emt 0:00:30]} 3. Nbd2 {[%emt 0:00:00]} d5 {[%emt 0:00:30]} 4. e3 {[%emt 0:00:00]} Bg7 {[%emt 0:00:30]} 5. b4 {[%emt 0:00:30]} a5 {[%emt 0:00:30]} 6. b5 {[%emt 0:00:30]} c5 {[%emt 0:00:30]} 7. bxc6 {[%emt 0:00:30]} Nxc6 {[%emt 0:00:30]} 8. Be2 {[%emt 0:00:30]} O-O {[%emt 0:00:30]} 9. O-O {[%emt 0:00:30]} Bf5 {[%emt 0:00:30]} 10. Bb2 {[%emt 0:00:00]} Rc8 {[%emt 0:01:30]} 11. c3 {[%emt 0:04:00]} Ne4 {[%emt 0:03:30]} 12. Nxe4 {[%emt 0:07:30]} Bxe4 {[%emt 0:00:30]} 13. Qb3 {[%emt 0:07:30]} Qd7 {[%emt 0:00:30]} 14. Ba3 {[%emt 0:03:30]} Rfd8 {[%emt 0:03:30]} 15. Nd2 {[%emt 0:09:30]} Bf5 {[%emt 0:00:30]} 16. Bb5 {[%emt 0:01:30]} e5 {[%emt 0:02:30]} 17. Rac1 {[%emt 0:08:30]} h5 {[%emt 0:06:30]} 18. Qa4 {[%emt 0:06:30]} h4 {[%emt 0:08:30]} 19. c4 {[%emt 0:24:30]} exd4 {[%emt 0:10:30]} 20. cxd5 {[%emt 0:00:30]} dxe3 {[%emt 0:01:30]} 21. dxc6 {[%emt 0:16:21]} bxc6 {[%emt 0:01:30]} 22. Bxc6 {[%emt 0:02:09]} Rxc6 {[%emt 0:06:30]} 23. Rxc6 {[%emt 0:02:08]} exd2 {[%emt 0:01:30]} 24. Bd6 {[%emt 0:03:34]} Bf8 {[%emt 0:02:30]} 0-1

[Event "TUR-chT Superleague 2018"]
[Site "Ankara"]
[Date "2018.07.28"]
[Round "4"]
[White "Yaran, Siar"]
[Black "Ozenir, Ekin Baris"]
[Result "1-0"]
[ECO "D00"]
[WhiteElo "2261"]
[BlackElo "2300"]
[Annotator "NA"]
[PlyCount "147"]
[EventDate "2018.07.25"]
[EventType "team-tourn"]
[EventCountry "TUR"]
[SourceTitle "playchess.com"]
[Source "ChessBase"]
[SourceQuality "1"]
[TimeControl "40/5400+30:1800+30"]

1. Nc3 Nf6 2. d4 d5 3. Bf4 Bf5 4. f3 e6 5. g4 Bg6 6. e3 a6 7. h4 h5 8. g5 Nfd7 9. Bd3 Bxd3 10. Qxd3 c5 11. g6 f6 12. Nge2 Nc6 13. O-O-O Qa5 14. e4 Nxd4 15. Nxd4 cxd4 16. Qxd4 Bb4 17. Bd2 Qb6 18. Qxb6 Nxb6 19. exd5 Bxc3 20. bxc3 Nxd5 21. Rhe1 O-O-O 22. Rxe6 Rhe8 23. Rde1 Rxe6 24. Rxe6 Kd7 25. Re4 Ne7 26. Rb4 b5 27. c4 bxc4 28. Rxc4 Nxg6 29. Ra4 Ra8 30. Be1 Ke6 31. Bg3 Ne7 32. Kd2 Nf5 33. Bf2 g5 34. Re4+ Kf7 35. c4 Rc8 36. Kd3 Rc6 37. a4 Kg6 38. hxg5 fxg5 39. Re8 h4 40. Rg8+ Kf6 41. c5 Rc7 42. Kc4 Rh7 43. Bg1 h3 44. Bh2 Rh4+ 45. Kb3 Nd4+ 46. Kc3 Ne6 47. c6 Kf7 48. Rc8 {[%emt 2:22:31]} Rxa4 {[%emt 2:24:02]} 49. c7 {[%emt 0:00:30]} Nxc7 {[%emt 0:00:30]} 50. Rxc7+ {[%emt 0:00:30]} Kg6 {[%emt 0:00:30]} 51. Rc6+ {[%emt 0:00:30]} Kh7 {[%emt 0:00:30]} 52. Kd3 {[%emt 0:00:30]} Ra3+ {[%emt 0:00:30]} 53. Ke4 {[%emt 0:00:30]} Ra2 {[%emt 0:00:30]} 54. Be5 {[%emt 0:00:30]} h2 {[%emt 0:00:30]} 55. Rc7+ {[%emt 0:00:30]} Kh6 {[%emt 0:00:30]} 56. Rc8 {[%emt 0:00:30]} Kg6 {[%emt 0:00:30]} 57. Rg8+ {[%emt 0:00:30]} Kh7 {[%emt 0:00:30]} 58. Rh8+ {[%emt 0:00:30]} Kg6 {[%emt 0:00:30]} 59. Rxh2 {[%emt 0:00:30]} Ra4+ {[%emt 0:00:30]} 60. Bd4 {[%emt 0:00:30]} Rb4 {[%emt 0:00:30]} 61. Ra2 {[%emt 0:00:30]} Rb1 {[%emt 0:00:30]} 62. Rxa6+ {[%emt 0:00:30]} Kh5 {[%emt 0:00:30]} 63. Be5 {[%emt 0:00:30]} Re1+ {[%emt 0:00:30]} 64. Kf5 {[%emt 0:00:30]} Rf1 {[%emt 0:00:30]} 65. f4 {[%emt 0:00:30]} g4 {[%emt 0:00:30]} 66. Ra8 {[%emt 0:00:30]} Kh4 {[%emt 0:00:30]} 67. Rh8+ {[%emt 0:00:30]} Kg3 {[%emt 0:00:30]} 68. Rg8 {[%emt 0:00:00]} Kf3 {[%emt 0:00:00]} 69. Rxg4 {[%emt 0:00:02]} Rh1 {[%emt 0:00:23]} 70. Rg6 {[%emt 0:00:06]} Rh5+ {[%emt 0:00:00]} 71. Ke6 {[%emt 0:00:05]} Ke4 {[%emt 0:00:00]} 72. f5 {[%emt 0:00:18]} Rh7 {[%emt 0:00:58]} 73. Rg4+ {[%emt 0:00:05]} Kf3 {[%emt 0:00:00]} 74. Ra4 {[%emt 0:00:08]} 1-0

[Event "TUR-chT Superleague 2018"]
[Site "Ankara"]
[Date "2018.07.28"]
[Round "4"]
[White "Demircioglu, Emre"]
[Black "Keler, Faruk"]
[Result "1/2-1/2"]
[ECO "E14"]
[WhiteElo "2244"]
[BlackElo "2286"]
[Annotator "NA"]
[PlyCount "95"]
[EventDate "2018.07.25"]
[EventType "team-tourn"]
[EventCountry "TUR"]
[SourceTitle "playchess.com"]
[Source "ChessBase"]
[SourceQuality "1"]
[TimeControl "40/5400+30:1800+30"]

1. d4 {[%emt 0:00:30]} Nf6 {[%emt 0:01:00]} 2. c4 {[%emt 0:01:30]} e6 {[%emt 0:00:30]} 3. Nf3 {[%emt 0:02:30]} c5 {[%emt 0:02:30]} 4. e3 {[%emt 0:02:30]} b6 {[%emt 0:00:30]} 5. Bd3 {[%emt 0:02:30]} cxd4 {[%emt 0:06:30]} 6. exd4 {[%emt 0:00:30]} Bb4+ {[%emt 0:00:30]} 7. Nc3 {[%emt 0:01:30]} Bxc3+ {[%emt 0:01:30]} 8. bxc3 {[%emt 0:00:30]} O-O {[%emt 0:05:30]} 9. O-O {[%emt 0:01:30]} d6 {[%emt 0:00:30]} 10. Bg5 {[%emt 0:08:30]} Bb7 {[%emt 0:02:30]} 11. Nd2 {[%emt 0:13:30]} h6 {[%emt 0:13:30]} 12. Bh4 {[%emt 0:02:30]} Nbd7 {[%emt 0:03:30]} 13. Re1 {[%emt 0:01:30]} Qc7 {[%emt 0:06:30]} 14. Bg3 {[%emt 0:12:30]} Rfe8 {[%emt 0:07:30]} 15. Bf1 {[%emt 0:01:30]} Qc6 {[%emt 0:11:30]} 16. a4 {[%emt 0:05:30]} a5 {[%emt 0:04:30]} 17. h3 {[%emt 0:10:30]} Rac8 {[%emt 0:01:30]} 18. Rb1 {[%emt 0:01:30]} Ba6 {[%emt 0:02:30]} 19. Be2 {[%emt 0:09:26]} Ra8 {[%emt 0:01:30]} 20. Bf3 {[%emt 0:01:08]} d5 {[%emt 0:00:00]} 21. cxd5 {[%emt 0:04:14]} exd5 {[%emt 0:02:00]} 22. Qb3 {[%emt 0:02:09]} Rac8 {[%emt 0:00:30]} 23. Rxe8+ {[%emt 0:00:43]} Rxe8 {[%emt 0:00:00]} 24. Nf1 {[%emt 0:04:15]} Bd3 {[%emt 0:02:00]} 25. Rc1 {[%emt 0:00:33]} Bc4 {[%emt 0:08:49]} 26. Qa3 {[%emt 0:03:39]} Be2 {[%emt 0:02:21]} 27. Re1 {[%emt 0:01:58]} Bxf3 {[%emt 0:01:22]} 28. Rxe8+ {[%emt 0:00:30]} Nxe8 {[%emt 0:00:30]} 29. gxf3 {[%emt 0:00:00]} Qe6 {[%emt 0:00:00]} 30. Kg2 {[%emt 0:01:11]} g5 {[%emt 0:00:10]} 31. Qc1 {[%emt 0:01:33]} f5 {[%emt 0:05:15]} 32. f4 {[%emt 0:00:46]} Qe4+ {[%emt 0:00:17]} 33. f3 {[%emt 0:01:56]} Qe2+ {[%emt 0:00:17]} 34. Bf2 {[%emt 0:00:00]} g4 {[%emt 0:00:33]} 35. hxg4 {[%emt 0:00:46]} fxg4 {[%emt 0:00:07]} 36. Qe3 {[%emt 0:01:01]} gxf3+ {[%emt 0:02:35]} 37. Qxf3 {[%emt 0:00:30]} Qxf3+ {[%emt 0:00:30]} 38. Kxf3 {[%emt 0:00:00]} b5 {[%emt 0:04:15]} 39. axb5 {[%emt 0:00:33]} Nd6 {[%emt 0:00:10]} 40. Ne3 {[%emt 0:00:00]} Nb6 {[%emt 0:00:49]} 41. Bh4 {[%emt 0:10:39]} a4 {[%emt 0:25:24]} 42. Be7 {[%emt 0:15:20]} Nxb5 {[%emt 0:00:59]} 43. Bc5 {[%emt 0:00:20]} Nc4 {[%emt 0:02:37]} 44. Nxd5 {[%emt 0:01:18]} a3 {[%emt 0:00:12]} 45. Bxa3 {[%emt 0:00:52]} Ncxa3 {[%emt 0:00:22]} 46. Ne7+ {[%emt 0:00:03]} Kf7 {[%emt 0:00:38]} 47. Nf5 {[%emt 0:00:13]} h5 {[%emt 0:00:40]} 48. Ke4 {[%emt 0:00:36]} 1/2-1/2